Cogmind - Beta 12 @@@ ROGUE MODE // 2023.03.12 @ 19:10:10 Player: AxaxaxasMlo Result: Self-destructed Performance ------------- Evolutions (1) 500 Regions Visited (2) 400 Robots Destroyed (20) 100 Value Destroyed (411) 411 Prototype IDs (0) 0 Alien Tech Used (0) 0 Bonus (0) 0 TOTAL SCORE: 1411 Bonus ------- None Cogmind --------- Core Integrity 321/400 Matter 255/300 Energy 250/250 System Corruption 0% Temperature Cool (0) Movement Rolling (80) Location -9/Materials Parts ------- > --- POWER (1) -------- Ion Engine > --- PROPULSION (4) --- Improved Treads Improved Treads Wheel Wheel > --- UTILITY (2) ------ Small Storage Unit > --- WEAPON (2) ------- Grenade Launcher > --- INVENTORY (8) ---- Improved Treads Improved Treads Shotgun Shotgun Datajack Peak State ------------ > --- POWER ------------ Light Nuclear Core > --- PROPULSION ------- Improved Treads Improved Treads Wheel Wheel > --- UTILITY ---------- Small Storage Unit Sensor Array > --- WEAPON ----------- Shotgun Shotgun > --- INVENTORY -------- Ion Engine Improved Treads Improved Treads Wheel Grenade Launcher Grenade Launcher [Rating: 15] Favorites ----------- Power Light Nuclear Core Engine Ion Engine Power Core Light Nuclear Core Propulsion Wheel Treads Improved Treads Wheel Wheel Utility Small Storage Unit Device Sensor Array Storage Small Storage Unit Weapon Light Assault Rifle Ballistic Gun Light Assault Rifle Launcher Grenade Launcher Build | -11 -10 -9 ------- Run | Jun Mat Mat Slots Evolved 2 | . . 2 Power . | . . . Propulsion 2 | . . 2 Utility . | . . . Weapon . | . . . Parts Attached 22 | 7 7 8 Power 3 | 1 1 1 Engine 2 | 1 . 1 Core 1 | . 1 . Reactor . | . . . Propulsion 6 | 2 1 3 Treads 2 | . . 2 Leg . | . . . Wheel 4 | 2 1 1 Hover . | . . . Flight . | . . . Utility 5 | 2 3 . Device 2 | 1 1 . Storage 3 | 1 2 . Processor . | . . . Hackware . | . . . Protection . | . . . Artifact . | . . . Weapon 8 | 2 2 4 Energy Gun . | . . . Energy Cannon . | . . . Ballistic Gun 5 | 2 1 2 Ballistic Cannon . | . . . Launcher 3 | . 1 2 Special Weapon . | . . . Impact Weapon . | . . . Slashing Weapon . | . . . Piercing Weapon . | . . . Special Melee Weapon . | . . . Unidentified Prototypes . | . . . Parts Lost 4 | . . 4 Power 1 | . . 1 Propulsion 1 | . . 1 Utility 1 | . . 1 Weapon 1 | . . 1 Highest Loss Streak 3 | . . 3 To Critical Strikes . | . . . Average Slot Usage (%) 98 | . 100 96 Engine 1 | . 2 1 Core 10 | . 11 9 Treads 9 | . . 22 Wheel 25 | . 28 21 Device 12 | . 14 9 Storage 12 | . 14 11 Ballistic Gun 17 | . 18 16 Launcher 7 | . 9 4 Naked Turns . | . . . Heaviest Build 17 | 13 15 17 Greatest Support 20 | 20 20 20 Greatest Overweight (x) 1 | . . 1 Average Overweight (x) . | . . . Largest Inventory Capacity 20 | 8 20 8 Average Capacity 7 | 7 8 8 Most Carried 9 | 8 9 7 Average Carried 6 | 6 7 5 Final Capacity 8 | 8 8 8 Final Carried 8 | 8 8 5 Class Distribution -------------------- 100% | Mutant Dominant Class ---------------- Mutant | -10/Materials Mutant | -9/Materials Resources | -11 -10 -9 ----------- Run | Jun Mat Mat Matter Collected 542 | 284 133 125 Remotely . | . . . Salvage Created 476 | 115 99 262 Parts 42 | 7 7 28 Haulers Intercepted . | . . . Recyclers Shooed 1 | . . 1 Parts Field Recycled . | . . . Retrieved Matter . | . . . Parts Self-Destructed . | . . . Prevented . | . . . Kills | -11 -10 -9 ------- Run | Jun Mat Mat Combat Hostiles Destroyed 15 | . 5 10 Guns 8 | . 3 5 AOE 7 | . 2 5 Classes Destroyed 8 | 2 2 4 Worker 1 | . . 1 Builder 1 | . . 1 Tunneler 1 | 1 . . Recycler 1 | 1 . . Watcher 1 | . . 1 Swarmer 8 | . 3 5 Grunt 5 | . 2 3 Sentry 2 | . . 2 Best Kill Streak 8 | 2 3 8 Combat Bots Only 5 | . 3 5 Max Kills in Single Turn 4 | 1 2 4 Gunslinging 1 | . . 1 Exploded 2 | . 2 2 Melee . | . . . Uniques/NPCs Destroyed . | . . . Combat | -11 -10 -9 -------- Run | Jun Mat Mat Damage Taken 876 | . 245 631 Core 131 | . 52 79 Absorbed by Shields . | . . . Core Remaining (%) 89 | 100 79 . Volleys Fired 38 | 7 17 14 Largest 2 | 2 2 2 Hottest 60 | 40 40 60 Shots Fired 68 | 14 27 27 Gun 57 | 14 23 20 Cannon . | . . . Launcher 11 | . 4 7 Special . | . . . Kinetic 57 | 14 23 20 Thermal . | . . . Explosive 11 | . 4 7 Electromagnetic . | . . . Robot Hit Streak 12 | 5 12 8 Robot Miss Streak 4 | 4 3 4 Penetration Max . | . . . Secondary Targets 1 | . . 1 Max Gunslinging Chain 1 | . . 1 Shots Hit Robots 36 | 7 16 13 Core Hits 39 | 4 10 25 Critical Kills . | . . . Critical Parts Destroyed . | . . . Critical Strikes . | . . . Melee Attacks . | . . . Impact . | . . . Slashing . | . . . Piercing . | . . . Sneak Attacks . | . . . Combat Hostiles . | . . . Follow-up Attacks . | . . . Damage Inflicted 960 | 51 377 532 Guns 404 | 51 127 226 Cannons . | . . . Explosions 534 | . 250 284 Melee . | . . . Ramming 22 | . . 22 Kinetic 404 | 51 127 226 Thermal . | . . . Explosive 534 | . 250 284 Electromagnetic . | . . . Impact . | . . . Slashing . | . . . Piercing . | . . . Highest Corruption . | . . . Average Corruption . | . . . Corruption Purged . | . . . Corruption Blocked . | . . . Overload Shots . | . . . Overflow Damage 18 | . 18 . Projectiles . | . . . Explosions 18 | . 18 . Melee . | . . . Knockbacks . | . . . Impact . | . . . Kinetic . | . . . Secondary . | . . . Self-Inflicted Damage 8 | . . 8 Shots . | . . . Rammed 10 | . . 10 Targets Rammed 10 | . . 10 Kicked . | . . . Crushed . | . . . Highest Temperature 37 | . 37 14 Average Temperature 14 | . 18 4 Received Heat Transfer 276 | . 102 174 Siege Activations . | . . . Robots Corrupted . | . . . Combat Hostiles . | . . . Parts Fried . | . . . Impact Corruptions . | . . . Robots Melted . | . . . Combat Hostiles . | . . . Parts Melted . | . . . Heat Transferred . | . . . Parts Sabotaged . | . . . Parts Stolen . | . . . Parts Stripped . | . . . Power Chain Reactions . | . . . Missiles Intercepted . | . . . Alert | -11 -10 -9 ------- Run | Jun Mat Mat Peak Influence 374 | 10 162 374 Initial 6 | . 6 . Average 102 | 3 109 134 Maximum Alert Level 1 | . . 1 Low Security (%) 88 | 100 100 70 Level 1 11 | . . 29 Level 2 . | . . . Level 3 . | . . . Level 4 . | . . . Level 5 . | . . . High Security . | . . . Max Security . | . . . Squads Dispatched 1 | . . 1 Investigation . | . . . Extermination . | . . . Reinforcement 1 | . . 1 Assault . | . . . Garrison . | . . . Intercept . | . . . Searches Triggered . | . . . Construction Impeded . | . . . Haulers Reinforced . | . . . Active Scanning Responses . | . . . Cargo Convoy Interrupts . | . . . Stealth | -11 -10 -9 --------- Run | Jun Mat Mat Distress Signals 3 | . . 3 Communications Jammed . | . . . Distress Signals . | . . . Times Spotted 27 | . 5 22 Peak Tracking Total 11 | . 3 11 Tactical Retreats 1 | . . 1 Traps | -11 -10 -9 ------- Run | Jun Mat Mat Traps Triggered . | . . . Indirectly . | . . . Trap Hack Attempts . | . . . Triggered . | . . . Disarmed . | . . . Reprogrammed . | . . . Reused . | . . . Traps Extracted . | . . . Installed . | . . . Triggered . | . . . Machines | -11 -10 -9 ---------- Run | Jun Mat Mat Machines Disabled 1 | . . 1 Max in Single Turn 1 | . . 1 Machines Repaired . | . . . Machines Sabotaged . | . . . Overloaded Fab Kills . | . . . Hacking | -11 -10 -9 --------- Run | Jun Mat Mat Machines Accessed 10 | . 5 5 Terminals 8 | . 4 4 Fabricators . | . . . Repair Stations 1 | . . 1 Recycling Units 1 | . 1 . Scanalyzers . | . . . Garrison Access . | . . . Total Hacks 26 | . 12 14 Successful 17 | . 11 6 Failed 9 | . 1 8 Catastrophic 1 | . . 1 Database Lockouts . | . . . Manual 17 | . 6 11 Terminals 23 | . 10 13 Fabricators . | . . . Repair Stations 1 | . . 1 Recycling Units 2 | . 2 . Scanalyzers . | . . . Garrison Access . | . . . Terminal Hacks 6 | . 5 1 Record 4 | . 3 1 Recall Investigation 1 | . 1 . Zone Layout 1 | . 1 . Fabricator Hacks . | . . . Repair Station Hacks . | . . . Recycling Unit Hacks 1 | . 1 . Report Inventory 1 | . 1 . Scanalyzer . | . . . Garrison Access Hacks . | . . . Unauthorized Hacks 10 | . 5 5 Terminals 8 | . 4 4 Assimilate 1 | . . 1 Botnet 6 | . 4 2 Disrupt 1 | . . 1 Fabricators . | . . . Repair Stations 1 | . . 1 Mechanics 1 | . . 1 Recycling Units 1 | . 1 . Monitor 1 | . 1 . Scanalyzers . | . . . Garrison Access . | . . . Data Cores Recovered . | . . . Used . | . . . Hacking Detections 10 | . 5 5 Full Trace Events . | . . . Feedback Events . | . . . Feedback Blocked . | . . . Robot Schematics Acquired . | . . . Robots Built . | . . . Authchips . | . . . Time . | . . . Total Robot Build Rating . | . . . Part Schematics Acquired . | . . . Parts Built . | . . . Authchips . | . . . Time . | . . . Total Part Build Rating . | . . . Parts Repaired . | . . . Time . | . . . Parts Recycled . | . . . Recycled Matter . | . . . Retrieved Matter . | . . . Retrieved Components . | . . . Parts Scanalyzed . | . . . Part Schematics Acquired . | . . . Parts Damaged . | . . . Bothacking | -11 -10 -9 ------------ Run | Jun Mat Mat Used RIF Installer . | . . . Robots Hacked . | . . . Non-combat . | . . . Combat . | . . . Robot Hacks Applied . | . . . Relay Couplers Released . | . . . Fabnet Peak Effective % . | . . . Robots Rewired . | . . . Allies Hacked . | . . . Hacks Repelled . | . . . Allies | -11 -10 -9 -------- Run | Jun Mat Mat Total Allies . | . . . Largest Group . | . . . Highest-Rated Group . | . . . Highest-Rated Ally . | . . . Total Orders . | . . . Ally Attacks . | . . . Total Damage . | . . . Kills . | . . . Allies Corrupted . | . . . Allies Melted . | . . . Intel | -11 -10 -9 ------- Run | Jun Mat Mat Robot Analysis Total . | . . . Derelict Logs Recovered . | . . . Drone Launches . | . . . Drone Recoveries . | . . . Exploration | -11 -10 -9 ------------- Run | Jun Mat Mat Turns Passed 864 | 129 414 321 Spaces Moved 744 | 79 419 246 Core 8 | 8 . . Treads . | . . . Legs . | . . . Wheels 736 | 71 419 246 Hover . | . . . Flight . | . . . Fastest Speed 50 | 50 80 80 Average Speed 79 | 76 80 80 Slowest Speed 95 | 80 80 95 Overloaded Moves . | . . . Propulsion Burnouts . | . . . Robots Hopped . | . . . Cave-ins Triggered . | . . . Exploration Rate (%) 41 | 6 72 45 Regions Visited 2 Branch Regions . Pre-discovered Areas . | . . . Known Exits Taken . | . . . Unknown Exits Taken 2 | 1 1 . Scrap Searched . | . . . Spaces Dug . | . . . Terrain Destroyed 42 | . 19 23 Melee . | . . . Projectile . | . . . AOE 42 | . 19 23 Terrain Rammed . | . . . Walls Destroyed . | . . . Machines Disabled . | . . . Actions | -11 -10 -9 --------- Run | Jun Mat Mat Total 954 | 134 478 342 Wait 104 | 29 15 60 Move 742 | 78 418 246 Hop . | . . . Pick Up 22 | 12 9 1 Fast Attach 8 | 4 2 2 Attach 7 | 3 . 4 Detach 1 | . . 1 Swap 7 | . 5 2 Drop 15 | 1 12 2 Fire 38 | 7 17 14 Melee . | . . . Ram 10 | . . 10 Kick . | . . . Crush . | . . . Escape Stasis . | . . . Rewire . | . . . Trap . | . . . Miscellaneous . | . . . Route ------- -11/Junkyard -10/Materials (discovered 3 exits: *Mat x3) -9/Materials (discovered 1 exit: [*Min]) History --------- Turn | Location | Event 9 | -11/Junkyard | Discovered new exit (range 15) 130 | -11/Junkyard | Entered Materials 319 | -10/Materials | Build established: Mutant 402 | -10/Materials | Discovered new exit (range 16) 481 | -10/Materials | Discovered new exit (range 13) 532 | -10/Materials | Discovered new exit (range 15) 544 | -10/Materials | Entered another Materials area 544 | -9/Materials | Evolved 2 slots: Propulsion x2 767 | -9/Materials | Discovered new exit (range 14) 865 | -9/Materials | Lost 3 parts (1p1u1w) 865 | -9/Materials | Self-destructed Last Messages --------------- 00826_ U-05 Engineer builds a Wall. 00828_ Critical hit (Burn: +37). 00828_ U-05 Engineer destroyed. 00831_ S-10 Pest destroyed. 00831_ U-05 Engineer lays Concrete. 00834_ Sensor Array destroyed. 00835_ K-01 Serf cleans the Nuclear Reactor. 00841_ O-16 Technician: "IFF HANDSHAKE FAILED. SECURING TERMINAL." 00843_ K-01 Serf collects debris. 00851_ O-16 Technician sends out distress signal. 00854_ Slammed into S-10 Pest. 00854_ Destabilizing: System interference. 00854_ Grenade Launcher temporarily disabled. 00855_ Slammed into S-10 Pest. 00857_ ALERT: Hostiles spotted, dispatching reinforcements to Terminal M004. 00857_ Slammed into S-10 Pest. 00862_ Slammed into R-06 Scavenger. 00864_ Slammed into Y-45 Defender. [Achievement: Back For More] Map ----- +----------------------------------------------------+ | ??????????????????????????????????????????? | | ??????????????????????????????????????????? | | ??????????????????????????????????????????? | | ??????????????????????????????????????????? | | ??????????????????????????????????????????? | | ??????????????????????????????????????????? | | ??????????????????????????????????????????? | | ??????????????????????????????????????????? | | ??????????????????????????????????????????? | | ??????????????????????????????????????????? | | ??????????????????????????????????????????? | | ??????????????????????????????????????????? | | ??????????????????????????????????????????? | | ??????????????????????????????????????????? | | ?????????????????#+#??????????????????????? | | ????????????????? ??????????????????????? | | ????????????????? ??????????????????????? | | ????????????????? ??????????????????????? | | ????????????????? ??????????????????????? | | ????????????????? ??????????????????????? | | ?????????????????# #??????????????????????? | | ?????????????????# #??????????????????????? | | ?????????????????#r#?????????????? ???????? | | ?????????????????# #?????????????? ???????? | | ???????????#######Y#?????????????? #??????? | | ???????????# ##@#????????????## #??????? | | ???????????# ## #???????????# ##?????? | | ???????????# ## #???????????# [% ##????? | | ???????????# ##s#???????????# #????? | | ???????????# ## #??????????## #????? | | ???????????# ## #??????????# ????? | | ????######## ## #??????????# * ???#?? | | ??# ! # ## #??????????# #??? ## | | ??# """ # ## #??????????# #??# | | ??# """ #/#+### ##########?# ???#"" | | ??# ! """ # Y ##==!!//#??# #???#"T | | ??# + ##==!!//#??# #???#"" | | ??# "" "" # ## #??# #???# | | ??# ""S"" # ## #### #???# | | ????"""" # =%[ =#???# | | ???? + = =%##??# !/ | | ????########## !T#??# |/ | | ?????????????# *=|#??# | | | ?????????????# !##??# | | ?????????????# """ """ ##??# | | ?????????????# """ """ ####### | | ?????????????# """ """ | | ?????????????# | | ?????????????# = =%* | | ?????????????# """ """ =####### | +----------------------------------------------------+ Best States ------------- Heat Dissipation 28 Energy Generation 14 Energy Capacity 250 Matter Stores 300 Matter Capacity 300 Sight Range 16 Robot Scan Range 14 Terrain Scan Density 10 Evasion (%) 50 Item Schematics ----------------- None Robot Schematics ------------------ None Fabricated ------------ Nothing Alien Tech Used ----------------- None Achievements -------------- Back For More Challenges ------------ None Game ------ Seed SigixNullDissipator Manual? 0 Play Time 00:20:32 Cumulative 29.5 hours Start 2023.03.12 @ 18:26:32 End 2023.03.12 @ 19:10:10 Sessions 1 Manual Loads 0 Difficulty Rogue Special Mode None Game No. 51 Rogue 51 Adventurer 0 Explorer 0 Win Type - Total 0 Types 0/0/0/0/0/0/0/0/0 Lore% 20 Gallery% 33 Achievement% 19 Wizard Run 0 Options --------- ASCII 0 Keyboard 0 Movement Mouse Keybinds 0 Fullscreen 2 Font 18/SmallcapsGlow Map View 76x50 Tactical HUD 1 Map Filters NONE Filters NONE Steam 1 RUN: 249c7f13-3595-42e7-9daf-f7083b7ab439